[Event "December 12 Early 2023"]
[Site "https://www.chess.com"]
[Date "2023.12.12"]
[Round "1"]
[White "Drygalov, Sergey"]
[Black "Manukyan, Artyom"]
[Result "1-0"]
[Board "15"]
[TimeControl "180+1"]
[WhiteFideId "24171743"]
[BlackFideId "13305786"]
[WhiteElo "3008"]
[BlackElo "2515"]
[WhiteTeam "RUS"]
[BlackTeam "ARM"]
[WhiteClock "0:00:20"]
[BlackClock "0:00:02"]

1. d4 {[%clk 0:03:00]}  d5 {[%clk 0:02:59]} 2. c4 {[%clk 0:03:00]}  e6 {[%clk 0:03:00]} 3. Nf3 {[%clk 0:03:01]}  Nf6 {[%clk 0:03:00]} 4. Nc3 {[%clk 0:03:01]}  c5 {[%clk 0:03:00]} 5. e3 {[%clk 0:03:00]}  Nc6 {[%clk 0:03:00]} 6. a3 {[%clk 0:03:00]}  Ne4 {[%clk 0:02:59]} 7. Bd3 {[%clk 0:02:57]}  Nxc3 {[%clk 0:02:54]} 8. bxc3 {[%clk 0:02:57]}  Be7 {[%clk 0:02:50]} 9. O-O {[%clk 0:02:57]}  O-O {[%clk 0:02:50]} 10. Nd2 {[%clk 0:02:51]}  b6 {[%clk 0:02:46]} 11. f4 {[%clk 0:02:44]}  Bf6 {[%clk 0:02:40]} 12. Bb2 {[%clk 0:02:35]}  Ne7 {[%clk 0:02:37]} 13. e4 {[%clk 0:02:31]}  dxe4 {[%clk 0:02:13]} 14. Nxe4 {[%clk 0:02:32]}  Nf5 {[%clk 0:02:09]} 15. Qf3 {[%clk 0:02:31]}  Ba6 {[%clk 0:02:03]} 16. g4 {[%clk 0:01:59]}  Nd6 {[%clk 0:01:39]} 17. Nxd6 {[%clk 0:01:22]}  Qxd6 {[%clk 0:01:38]} 18. Rad1 {[%clk 0:01:23]}  Rad8 {[%clk 0:01:32]} 19. g5 {[%clk 0:01:18]}  Be7 {[%clk 0:01:30]} 20. h4 {[%clk 0:01:19]}  Qc7 {[%clk 0:01:26]} 21. d5 {[%clk 0:01:14]}  exd5 {[%clk 0:01:21]} 22. cxd5 {[%clk 0:01:14]}  Bxd3 {[%clk 0:01:21]} 23. Rxd3 {[%clk 0:01:15]}  c4 {[%clk 0:01:17]} 24. Rd2 {[%clk 0:01:14]}  Qc5+ {[%clk 0:01:14]} 25. Kg2 {[%clk 0:01:13]}  Rd7 {[%clk 0:01:14]} 26. Rfd1 {[%clk 0:01:11]}  Rfd8 {[%clk 0:01:13]} 27. Rd4 {[%clk 0:01:09]}  Bf8 {[%clk 0:01:13]} 28. Bc1 {[%clk 0:01:07]}  b5 {[%clk 0:01:11]} 29. f5 {[%clk 0:01:07]}  a5 {[%clk 0:01:10]} 30. h5 {[%clk 0:01:03]}  b4 {[%clk 0:01:09]} 31. axb4 {[%clk 0:01:01]}  axb4 {[%clk 0:01:10]} 32. cxb4 {[%clk 0:01:01]}  Qxb4 {[%clk 0:01:11]} 33. g6 {[%clk 0:00:58]}  fxg6 {[%clk 0:01:10]} 34. hxg6 {[%clk 0:00:58]}  h6 {[%clk 0:01:03]} 35. f6 {[%clk 0:00:51]}  gxf6 {[%clk 0:01:01]} 36. Qxf6 {[%clk 0:00:50]}  Qd6 {[%clk 0:00:59]} 37. Qf5 {[%clk 0:00:49]}  Bg7 {[%clk 0:00:56]} 38. Rxc4 {[%clk 0:00:45]}  Rf8 {[%clk 0:00:52]} 39. Qg4 {[%clk 0:00:41]}  Re7 {[%clk 0:00:44]} 40. Bf4 {[%clk 0:00:38]}  Qa3 {[%clk 0:00:26]} 41. Bg3 {[%clk 0:00:28]}  Qa2+ {[%clk 0:00:23]} 42. Kh3 {[%clk 0:00:27]}  Re2 {[%clk 0:00:21]} 43. Re4 {[%clk 0:00:24]}  Rxe4 {[%clk 0:00:11]} 44. Qxe4 {[%clk 0:00:24]}  Qb3 {[%clk 0:00:08]} 45. Rd3 {[%clk 0:00:23]}  Qb1 {[%clk 0:00:06]} 46. Re3 {[%clk 0:00:20]}  Qf1+ {[%clk 0:00:05]} 47. Kh2 {[%clk 0:00:21]}  Ra8 {[%clk 0:00:03]} 48. Re2 {[%clk 0:00:18]}  Rf8 {[%clk 0:00:02]} 49. d6 {[%clk 0:00:17]}  Qf6 {[%clk 0:00:01]} 50. Qe6+ {[%clk 0:00:17]}  Qxe6 {[%clk 0:00:02]} 51. Rxe6 {[%clk 0:00:18]}  Rd8 {[%clk 0:00:02]} 52. Bh4 {[%clk 0:00:19]}  Rd7 {[%clk 0:00:02]} 53. Be7 {[%clk 0:00:19]}  Bf8 {[%clk 0:00:02]} 54. Kg3 {[%clk 0:00:19]}  Kg7 {[%clk 0:00:02]} 55. Kg4 {[%clk 0:00:20]}  Ra7 {[%clk 0:00:03]} 56. Kf5 {[%clk 0:00:20]}  Ra5+ {[%clk 0:00:03]} 57. Ke4 {[%clk 0:00:20]}  Ra6 {[%clk 0:00:03]} 58. Kd5 {[%clk 0:00:19]}  Ra5+ {[%clk 0:00:03]} 59. Kc6 {[%clk 0:00:19]}  Ra6+ {[%clk 0:00:04]} 60. Kb7 {[%clk 0:00:19]}  Ra2 {[%clk 0:00:04]} 61. Bxf8+ {[%clk 0:00:19]}  Kxf8 {[%clk 0:00:05]} 62. d7 {[%clk 0:00:19]}  Rb2+ {[%clk 0:00:05]} 63. Kc7 {[%clk 0:00:19]}  Rc2+ {[%clk 0:00:06]} 64. Rc6 {[%clk 0:00:20]}  Rxc6+ {[%clk 0:00:02]} 65. Kxc6 {[%clk 0:00:20]} 1-0

[Event "December 12 Early 2023"]
[Site "https://www.chess.com"]
[Date "2023.12.12"]
[Round "1"]
[White "Pham, Le Thao Nguyen"]
[Black "Bortnyk, Olexandr"]
[Result "0-1"]
[Board "16"]
[TimeControl "180+1"]
[WhiteFideId "12401226"]
[BlackFideId "14120828"]
[WhiteElo "2515"]
[BlackElo "3004"]
[WhiteTeam "VIE"]
[BlackTeam "UKR"]
[WhiteClock "0:00:00"]
[BlackClock "0:00:47"]

1. d4 {[%clk 0:02:58]}  d6 {[%clk 0:02:52]} 2. Nf3 {[%clk 0:02:55]}  Nf6 {[%clk 0:02:47]} 3. c4 {[%clk 0:02:47]}  g6 {[%clk 0:02:42]} 4. Nc3 {[%clk 0:02:45]}  Bf5 {[%clk 0:02:41]} 5. Bg5 {[%clk 0:02:30]}  Bg7 {[%clk 0:02:41]} 6. e3 {[%clk 0:02:29]}  Ne4 {[%clk 0:02:38]} 7. Nxe4 {[%clk 0:02:26]}  Bxe4 {[%clk 0:02:39]} 8. Be2 {[%clk 0:02:26]}  O-O {[%clk 0:02:37]} 9. O-O {[%clk 0:02:26]}  Bxf3 {[%clk 0:02:15]} 10. Bxf3 {[%clk 0:02:25]}  c6 {[%clk 0:02:16]} 11. b4 {[%clk 0:02:14]}  a6 {[%clk 0:02:11]} 12. a4 {[%clk 0:02:11]}  h6 {[%clk 0:02:05]} 13. Bh4 {[%clk 0:02:10]}  f5 {[%clk 0:02:03]} 14. h3 {[%clk 0:01:58]}  g5 {[%clk 0:02:01]} 15. Bg3 {[%clk 0:01:58]}  e5 {[%clk 0:02:02]} 16. dxe5 {[%clk 0:01:48]}  dxe5 {[%clk 0:02:02]} 17. e4 {[%clk 0:01:45]}  f4 {[%clk 0:01:59]} 18. Bh2 {[%clk 0:01:45]}  Nd7 {[%clk 0:01:51]} 19. Qb3 {[%clk 0:01:38]}  c5 {[%clk 0:01:49]} 20. Rfd1 {[%clk 0:01:34]}  Qe7 {[%clk 0:01:49]} 21. b5 {[%clk 0:01:23]}  a5 {[%clk 0:01:45]} 22. Bg4 {[%clk 0:01:13]}  Nb6 {[%clk 0:01:45]} 23. Kh1 {[%clk 0:01:02]}  Rad8 {[%clk 0:01:38]} 24. Rd5 {[%clk 0:00:54]}  Nxd5 {[%clk 0:01:35]} 25. cxd5 {[%clk 0:00:55]}  Rd6 {[%clk 0:01:31]} 26. f3 {[%clk 0:00:50]}  b6 {[%clk 0:01:31]} 27. Bg1 {[%clk 0:00:50]}  Kh8 {[%clk 0:01:30]} 28. Rc1 {[%clk 0:00:47]}  Rfd8 {[%clk 0:01:25]} 29. Rc3 {[%clk 0:00:43]}  Qe8 {[%clk 0:01:25]} 30. Bf2 {[%clk 0:00:40]}  h5 {[%clk 0:01:25]} 31. Bf5 {[%clk 0:00:40]}  Rh6 {[%clk 0:01:23]} 32. Qb1 {[%clk 0:00:32]}  Bf8 {[%clk 0:01:23]} 33. Qe1 {[%clk 0:00:31]}  Bd6 {[%clk 0:01:23]} 34. Qe2 {[%clk 0:00:31]}  Qe7 {[%clk 0:01:22]} 35. Kg1 {[%clk 0:00:31]}  Rf8 {[%clk 0:01:19]} 36. Be6 {[%clk 0:00:27]}  Kg7 {[%clk 0:01:07]} 37. Qc4 {[%clk 0:00:27]}  Rg6 {[%clk 0:00:56]} 38. Bf5 {[%clk 0:00:24]}  Rgf6 {[%clk 0:00:54]} 39. Be6 {[%clk 0:00:23]}  Bc7 {[%clk 0:00:49]} 40. Rd3 {[%clk 0:00:23]}  Rd8 {[%clk 0:00:48]} 41. Be1 {[%clk 0:00:22]}  Qd6 {[%clk 0:00:46]} 42. h4 {[%clk 0:00:20]}  Rxe6 {[%clk 0:00:47]} 43. dxe6 {[%clk 0:00:00]}  Qxd3 {[%clk 0:00:47]} 0-1

[Event "December 12 Early 2023"]
[Site "https://www.chess.com"]
[Date "2023.12.12"]
[Round "1"]
[White "Khismatullin, Denis"]
[Black "Rangel, Daniel"]
[Result "1-0"]
[Board "17"]
[TimeControl "180+1"]
[WhiteFideId "4142578"]
[BlackFideId "2124475"]
[WhiteElo "2987"]
[BlackElo "2515"]
[WhiteTeam "RUS"]
[BlackTeam "BRA"]
[WhiteClock "0:02:11"]
[BlackClock "0:00:56"]

1. c4 {[%clk 0:03:00]}  Nf6 {[%clk 0:02:56]} 2. Nc3 {[%clk 0:03:00]}  e6 {[%clk 0:02:57]} 3. Nf3 {[%clk 0:02:59]}  d5 {[%clk 0:02:47]} 4. cxd5 {[%clk 0:02:58]}  exd5 {[%clk 0:02:47]} 5. d4 {[%clk 0:02:58]}  Be7 {[%clk 0:02:44]} 6. Bf4 {[%clk 0:02:55]}  O-O {[%clk 0:02:36]} 7. e3 {[%clk 0:02:54]}  c6 {[%clk 0:02:32]} 8. Bd3 {[%clk 0:02:54]}  Bg4 {[%clk 0:02:31]} 9. Qc2 {[%clk 0:02:50]}  Bh5 {[%clk 0:02:18]} 10. Ne5 {[%clk 0:02:47]}  Nbd7 {[%clk 0:02:11]} 11. f3 {[%clk 0:02:46]}  c5 {[%clk 0:02:02]} 12. O-O {[%clk 0:02:40]}  Rc8 {[%clk 0:01:52]} 13. Rad1 {[%clk 0:02:30]}  a6 {[%clk 0:01:23]} 14. Kh1 {[%clk 0:02:28]}  b5 {[%clk 0:01:21]} 15. Bf5 {[%clk 0:02:19]}  b4 {[%clk 0:01:14]} 16. Nxd7 {[%clk 0:02:15]}  Nxd7 {[%clk 0:01:14]} 17. Nxd5 {[%clk 0:02:12]}  cxd4 {[%clk 0:00:56]} 18. Qxc8 {[%clk 0:02:11]} 1-0

[Event "December 12 Early 2023"]
[Site "https://www.chess.com"]
[Date "2023.12.12"]
[Round "1"]
[White "Valle Luis, Leo"]
[Black "Terry, Renato"]
[Result "0-1"]
[Board "18"]
[TimeControl "180+1"]
[WhiteFideId "54577187"]
[BlackFideId "3803457"]
[WhiteElo "2515"]
[BlackElo "2982"]
[WhiteTeam "ESP"]
[BlackTeam "PER"]
[WhiteClock "0:00:20"]
[BlackClock "0:00:58"]

1. e4 {[%clk 0:03:00]}  e6 {[%clk 0:02:59]} 2. d4 {[%clk 0:03:00]}  d5 {[%clk 0:03:00]} 3. e5 {[%clk 0:03:01]}  c5 {[%clk 0:02:59]} 4. c3 {[%clk 0:03:02]}  Qb6 {[%clk 0:02:59]} 5. Nf3 {[%clk 0:03:00]}  Bd7 {[%clk 0:02:59]} 6. Be2 {[%clk 0:02:50]}  cxd4 {[%clk 0:02:59]} 7. cxd4 {[%clk 0:02:49]}  Bb5 {[%clk 0:02:57]} 8. O-O {[%clk 0:02:44]}  Bxe2 {[%clk 0:02:57]} 9. Qxe2 {[%clk 0:02:45]}  Nc6 {[%clk 0:02:57]} 10. Rd1 {[%clk 0:02:44]}  Nge7 {[%clk 0:02:57]} 11. Nc3 {[%clk 0:02:44]}  Nf5 {[%clk 0:02:57]} 12. Qd3 {[%clk 0:02:38]}  Nb4 {[%clk 0:02:55]} 13. Qb1 {[%clk 0:02:37]}  Rd8 {[%clk 0:02:29]} 14. a3 {[%clk 0:02:36]}  Nc6 {[%clk 0:02:28]} 15. Qd3 {[%clk 0:02:31]}  Na5 {[%clk 0:02:25]} 16. b4 {[%clk 0:02:06]}  Nc4 {[%clk 0:02:22]} 17. Nxd5 {[%clk 0:01:58]}  Rxd5 {[%clk 0:02:15]} 18. Qxc4 {[%clk 0:01:58]}  Be7 {[%clk 0:02:15]} 19. g4 {[%clk 0:01:49]}  Nh6 {[%clk 0:02:07]} 20. h3 {[%clk 0:01:48]}  Ng8 {[%clk 0:02:02]} 21. Be3 {[%clk 0:01:44]}  h5 {[%clk 0:02:00]} 22. g5 {[%clk 0:01:43]}  Bd8 {[%clk 0:02:00]} 23. Nd2 {[%clk 0:01:40]}  Ne7 {[%clk 0:02:00]} 24. Ne4 {[%clk 0:01:40]}  Nf5 {[%clk 0:02:00]} 25. Nc3 {[%clk 0:01:40]}  Rd7 {[%clk 0:01:59]} 26. Na4 {[%clk 0:01:39]}  Qc7 {[%clk 0:01:55]} 27. Qe2 {[%clk 0:01:27]}  b6 {[%clk 0:01:47]} 28. Rac1 {[%clk 0:01:14]}  Qb7 {[%clk 0:01:47]} 29. b5 {[%clk 0:01:00]}  g6 {[%clk 0:01:39]} 30. Rc6 {[%clk 0:00:55]}  O-O {[%clk 0:01:36]} 31. Nc3 {[%clk 0:00:50]}  Ne7 {[%clk 0:01:30]} 32. Rc4 {[%clk 0:00:47]}  Rc7 {[%clk 0:01:15]} 33. Rxc7 {[%clk 0:00:32]}  Bxc7 {[%clk 0:01:15]} 34. f3 {[%clk 0:00:32]}  Nf5 {[%clk 0:01:15]} 35. Ne4 {[%clk 0:00:30]}  Kg7 {[%clk 0:01:15]} 36. Bf2 {[%clk 0:00:25]}  Rd8 {[%clk 0:01:16]} 37. Nf6 {[%clk 0:00:20]}  Bb8 {[%clk 0:01:15]} 38. d5 {[%clk 0:00:20]}  exd5 {[%clk 0:01:14]} 39. e6 {[%clk 0:00:20]}  Qc7 {[%clk 0:00:59]} 40. exf7 {[%clk 0:00:19]}  Qh2+ {[%clk 0:00:58]} 41. Kf1 {[%clk 0:00:19]}  Qh1+ {[%clk 0:00:58]} 42. Bg1 {[%clk 0:00:19]}  Ng3+ {[%clk 0:00:59]} 43. Kf2 {[%clk 0:00:20]}  Nxe2 {[%clk 0:00:59]} 44. Ne8+ {[%clk 0:00:20]}  Kxf7 {[%clk 0:00:58]} 45. Kxe2 {[%clk 0:00:20]} 0-1

[Event "December 12 Early 2023"]
[Site "https://www.chess.com"]
[Date "2023.12.12"]
[Round "1"]
[White "Daneshvar, Bardiya"]
[Black "Korchynskyi, Mykola"]
[Result "1-0"]
[Board "19"]
[TimeControl "180+1"]
[WhiteFideId "12576468"]
[BlackFideId "34138005"]
[WhiteElo "2979"]
[BlackElo "2515"]
[WhiteTeam "IRI"]
[BlackTeam "UKR"]
[WhiteClock "0:00:49"]
[BlackClock "0:00:17"]

1. Nf3 {[%clk 0:03:00]}  d5 {[%clk 0:02:59]} 2. e3 {[%clk 0:03:01]}  Nf6 {[%clk 0:02:58]} 3. c4 {[%clk 0:03:02]}  e6 {[%clk 0:02:58]} 4. Nc3 {[%clk 0:03:02]}  Be7 {[%clk 0:02:58]} 5. b3 {[%clk 0:03:03]}  O-O {[%clk 0:02:59]} 6. Bb2 {[%clk 0:03:04]}  b6 {[%clk 0:02:59]} 7. cxd5 {[%clk 0:03:04]}  exd5 {[%clk 0:02:59]} 8. g3 {[%clk 0:03:04]}  Bb7 {[%clk 0:03:00]} 9. Bg2 {[%clk 0:03:04]}  c5 {[%clk 0:03:00]} 10. O-O {[%clk 0:03:04]}  d4 {[%clk 0:02:54]} 11. exd4 {[%clk 0:03:03]}  cxd4 {[%clk 0:02:55]} 12. Ne2 {[%clk 0:03:03]}  d3 {[%clk 0:02:54]} 13. Nf4 {[%clk 0:03:03]}  Na6 {[%clk 0:02:51]} 14. Ne5 {[%clk 0:02:59]}  Bxg2 {[%clk 0:02:50]} 15. Kxg2 {[%clk 0:03:00]}  Nc5 {[%clk 0:02:40]} 16. Nc6 {[%clk 0:02:57]}  Qd7 {[%clk 0:02:34]} 17. Qf3 {[%clk 0:02:53]}  Nfe4 {[%clk 0:02:20]} 18. Nxe7+ {[%clk 0:02:47]}  Qxe7 {[%clk 0:02:20]} 19. Rfe1 {[%clk 0:02:45]}  f5 {[%clk 0:01:58]} 20. Qe3 {[%clk 0:02:38]}  Qb7 {[%clk 0:01:53]} 21. f3 {[%clk 0:02:36]}  Ng5 {[%clk 0:01:42]} 22. Nh5 {[%clk 0:02:16]}  h6 {[%clk 0:01:13]} 23. Bxg7 {[%clk 0:01:51]}  Rfe8 {[%clk 0:01:11]} 24. Qf2 {[%clk 0:01:32]}  Qf7 {[%clk 0:01:04]} 25. Nf6+ {[%clk 0:01:08]}  Kxg7 {[%clk 0:00:59]} 26. Nxe8+ {[%clk 0:01:08]}  Rxe8 {[%clk 0:01:00]} 27. Rxe8 {[%clk 0:01:08]}  Qxe8 {[%clk 0:01:00]} 28. Re1 {[%clk 0:01:08]}  Qd7 {[%clk 0:00:55]} 29. Qe3 {[%clk 0:01:07]}  Nge6 {[%clk 0:00:38]} 30. b4 {[%clk 0:01:06]}  f4 {[%clk 0:00:34]} 31. Qe5+ {[%clk 0:01:06]}  Kf7 {[%clk 0:00:33]} 32. bxc5 {[%clk 0:01:05]}  fxg3 {[%clk 0:00:33]} 33. Qf5+ {[%clk 0:01:04]}  Ke7 {[%clk 0:00:33]} 34. Qh7+ {[%clk 0:00:58]}  Ke8 {[%clk 0:00:33]} 35. Qg8+ {[%clk 0:00:57]}  Ke7 {[%clk 0:00:33]} 36. Qh7+ {[%clk 0:00:50]}  Kd8 {[%clk 0:00:31]} 37. Qxd7+ {[%clk 0:00:49]}  Kxd7 {[%clk 0:00:32]} 38. cxb6 {[%clk 0:00:48]}  axb6 {[%clk 0:00:31]} 39. hxg3 {[%clk 0:00:48]}  Nc5 {[%clk 0:00:28]} 40. Rh1 {[%clk 0:00:48]}  b5 {[%clk 0:00:19]} 41. Rxh6 {[%clk 0:00:48]}  b4 {[%clk 0:00:20]} 42. Kf2 {[%clk 0:00:48]}  b3 {[%clk 0:00:17]} 43. axb3 {[%clk 0:00:49]} 1-0

[Event "December 12 Early 2023"]
[Site "https://www.chess.com"]
[Date "2023.12.12"]
[Round "1"]
[White "Devaev, Alexander"]
[Black "Ivic, Velimir"]
[Result "0-1"]
[Board "20"]
[TimeControl "180+1"]
[WhiteFideId "4169395"]
[BlackFideId "950122"]
[WhiteElo "2514"]
[BlackElo "2965"]
[WhiteTeam "RUS"]
[BlackTeam "SRB"]
[WhiteClock "0:00:00"]
[BlackClock "0:00:20"]

1. Nf3 {[%clk 0:02:58]}  d5 {[%clk 0:02:59]} 2. d4 {[%clk 0:02:58]}  Nf6 {[%clk 0:02:58]} 3. c4 {[%clk 0:02:57]}  e6 {[%clk 0:02:56]} 4. Nc3 {[%clk 0:02:55]}  Nbd7 {[%clk 0:02:56]} 5. Bg5 {[%clk 0:02:53]}  h6 {[%clk 0:02:54]} 6. Bh4 {[%clk 0:02:52]}  Be7 {[%clk 0:02:53]} 7. e3 {[%clk 0:02:52]}  O-O {[%clk 0:02:51]} 8. Qc2 {[%clk 0:02:53]}  c6 {[%clk 0:02:47]} 9. a3 {[%clk 0:02:50]}  Re8 {[%clk 0:02:44]} 10. Bd3 {[%clk 0:02:46]}  b6 {[%clk 0:02:38]} 11. O-O {[%clk 0:02:45]}  Bb7 {[%clk 0:02:38]} 12. Rfd1 {[%clk 0:02:45]}  Rc8 {[%clk 0:02:37]} 13. Rac1 {[%clk 0:02:40]}  Nh5 {[%clk 0:02:35]} 14. Bxe7 {[%clk 0:02:39]}  Qxe7 {[%clk 0:02:36]} 15. cxd5 {[%clk 0:02:10]}  exd5 {[%clk 0:02:35]} 16. Bf5 {[%clk 0:02:08]}  Rcd8 {[%clk 0:02:33]} 17. Bxd7 {[%clk 0:02:03]}  Rxd7 {[%clk 0:02:34]} 18. b4 {[%clk 0:02:03]}  Rd6 {[%clk 0:02:25]} 19. b5 {[%clk 0:01:52]}  c5 {[%clk 0:02:24]} 20. dxc5 {[%clk 0:01:48]}  bxc5 {[%clk 0:02:24]} 21. Na4 {[%clk 0:01:49]}  d4 {[%clk 0:02:19]} 22. Nxc5 {[%clk 0:01:25]}  Bxf3 {[%clk 0:02:17]} 23. gxf3 {[%clk 0:01:25]}  Rg6+ {[%clk 0:02:03]} 24. Kh1 {[%clk 0:01:14]}  dxe3 {[%clk 0:02:04]} 25. Re1 {[%clk 0:01:13]}  Qg5 {[%clk 0:01:52]} 26. fxe3 {[%clk 0:01:12]}  Ng3+ {[%clk 0:01:21]} 27. hxg3 {[%clk 0:01:02]}  Qxg3 {[%clk 0:01:22]} 28. Rg1 {[%clk 0:00:36]}  Qxf3+ {[%clk 0:00:44]} 29. Rg2 {[%clk 0:00:33]}  Rxe3 {[%clk 0:00:34]} 30. Kg1 {[%clk 0:00:11]}  Rxg2+ {[%clk 0:00:28]} 31. Qxg2 {[%clk 0:00:11]}  Qf4 {[%clk 0:00:27]} 32. Nd7 {[%clk 0:00:11]}  Qd4 {[%clk 0:00:25]} 33. Rc8+ {[%clk 0:00:12]}  Re8+ {[%clk 0:00:25]} 34. Qf2 {[%clk 0:00:08]}  Qxf2+ {[%clk 0:00:26]} 35. Kxf2 {[%clk 0:00:08]}  Rxc8 {[%clk 0:00:27]} 36. a4 {[%clk 0:00:08]}  Rc7 {[%clk 0:00:19]} 37. Ne5 {[%clk 0:00:08]}  Kf8 {[%clk 0:00:20]} 38. Ke3 {[%clk 0:00:06]}  Ke7 {[%clk 0:00:20]} 39. Kd4 {[%clk 0:00:07]}  Kd6 {[%clk 0:00:20]} 40. Nc4+ {[%clk 0:00:07]}  Ke6 {[%clk 0:00:20]} 41. a5 {[%clk 0:00:07]}  h5 {[%clk 0:00:21]} 42. Ne3 {[%clk 0:00:00]}  h4 {[%clk 0:00:20]} 0-1

[Event "December 12 Early 2023"]
[Site "https://www.chess.com"]
[Date "2023.12.12"]
[Round "1"]
[White "Nguyen, Ngoc Truong Son"]
[Black "Andrews, Todd"]
[Result "1-0"]
[Board "21"]
[TimeControl "180+1"]
[WhiteFideId "12401110"]
[BlackFideId "2012456"]
[WhiteElo "2956"]
[BlackElo "2514"]
[WhiteTeam "VIE"]
[BlackTeam "USA"]
[WhiteClock "0:00:49"]
[BlackClock "0:00:21"]

1. d4 {[%clk 0:03:00]}  Nf6 {[%clk 0:02:59]} 2. c4 {[%clk 0:03:00]}  c5 {[%clk 0:03:00]} 3. d5 {[%clk 0:03:00]}  b5 {[%clk 0:03:01]} 4. cxb5 {[%clk 0:03:00]}  a6 {[%clk 0:03:02]} 5. bxa6 {[%clk 0:03:00]}  g6 {[%clk 0:03:02]} 6. Nc3 {[%clk 0:03:00]}  Bg7 {[%clk 0:03:02]} 7. e4 {[%clk 0:03:00]}  O-O {[%clk 0:03:03]} 8. Nf3 {[%clk 0:02:58]}  Qa5 {[%clk 0:03:04]} 9. Bd2 {[%clk 0:02:54]}  Bxa6 {[%clk 0:03:04]} 10. Bxa6 {[%clk 0:02:54]}  Qxa6 {[%clk 0:03:05]} 11. Qe2 {[%clk 0:02:53]}  Qxe2+ {[%clk 0:03:04]} 12. Kxe2 {[%clk 0:02:54]}  d6 {[%clk 0:03:05]} 13. Rab1 {[%clk 0:02:43]}  Nfd7 {[%clk 0:03:03]} 14. Bg5 {[%clk 0:02:28]}  Bxc3 {[%clk 0:02:57]} 15. bxc3 {[%clk 0:02:28]}  Rxa2+ {[%clk 0:02:57]} 16. Nd2 {[%clk 0:02:28]}  Ne5 {[%clk 0:02:42]} 17. Ra1 {[%clk 0:02:18]}  Rc2 {[%clk 0:02:34]} 18. Rhc1 {[%clk 0:02:13]}  Rxc1 {[%clk 0:02:34]} 19. Rxc1 {[%clk 0:02:14]}  f6 {[%clk 0:02:31]} 20. Bf4 {[%clk 0:02:08]}  Nbd7 {[%clk 0:02:28]} 21. Ra1 {[%clk 0:01:59]}  Rb8 {[%clk 0:02:27]} 22. Bxe5 {[%clk 0:01:57]}  Nxe5 {[%clk 0:02:26]} 23. f4 {[%clk 0:01:57]}  Nf7 {[%clk 0:02:01]} 24. Ra2 {[%clk 0:01:54]}  f5 {[%clk 0:01:56]} 25. Kd3 {[%clk 0:01:19]}  Kg7 {[%clk 0:01:51]} 26. Ra7 {[%clk 0:01:17]}  Kf6 {[%clk 0:01:50]} 27. g3 {[%clk 0:01:11]}  Rb2 {[%clk 0:01:37]} 28. h3 {[%clk 0:01:08]}  e6 {[%clk 0:01:04]} 29. dxe6 {[%clk 0:01:04]}  Kxe6 {[%clk 0:01:04]} 30. g4 {[%clk 0:01:04]}  fxe4+ {[%clk 0:00:57]} 31. Nxe4 {[%clk 0:01:03]}  Rh2 {[%clk 0:00:49]} 32. f5+ {[%clk 0:01:03]}  gxf5 {[%clk 0:00:47]} 33. gxf5+ {[%clk 0:01:04]}  Kd5 {[%clk 0:00:26]} 34. Nf6+ {[%clk 0:00:59]}  Ke5 {[%clk 0:00:26]} 35. Ng4+ {[%clk 0:00:59]}  Kxf5 {[%clk 0:00:25]} 36. Nxh2 {[%clk 0:01:00]}  Ne5+ {[%clk 0:00:25]} 37. Ke3 {[%clk 0:00:59]}  h5 {[%clk 0:00:25]} 38. Nf3 {[%clk 0:00:57]}  Nc4+ {[%clk 0:00:23]} 39. Kf2 {[%clk 0:00:55]}  d5 {[%clk 0:00:23]} 40. Rg7 {[%clk 0:00:53]}  Nd6 {[%clk 0:00:22]} 41. Rg5+ {[%clk 0:00:53]}  Kf4 {[%clk 0:00:22]} 42. Rxd5 {[%clk 0:00:50]}  Ne4+ {[%clk 0:00:23]} 43. Kg2 {[%clk 0:00:50]}  c4 {[%clk 0:00:21]} 44. Rd4 {[%clk 0:00:49]} 1-0

[Event "December 12 Early 2023"]
[Site "https://www.chess.com"]
[Date "2023.12.12"]
[Round "1"]
[White "Zimmermann, Ulrich"]
[Black "Makarian, Rudik"]
[Result "1-0"]
[Board "24"]
[TimeControl "180+1"]
[WhiteFideId "24654523"]
[BlackFideId "44105681"]
[WhiteElo "2510"]
[BlackElo "2946"]
[WhiteTeam "GER"]
[BlackTeam "FID"]
[WhiteClock "0:00:21"]
[BlackClock "0:00:00"]

1. Nf3 {[%clk 0:02:58]}  Nf6 {[%clk 0:02:57]} 2. g3 {[%clk 0:02:59]}  d5 {[%clk 0:02:56]} 3. Bg2 {[%clk 0:03:00]}  e6 {[%clk 0:02:49]} 4. O-O {[%clk 0:03:00]}  Be7 {[%clk 0:02:50]} 5. d3 {[%clk 0:02:59]}  O-O {[%clk 0:02:50]} 6. Nc3 {[%clk 0:02:57]}  c5 {[%clk 0:02:42]} 7. e4 {[%clk 0:02:57]}  Nc6 {[%clk 0:02:42]} 8. Nd2 {[%clk 0:02:55]}  d4 {[%clk 0:02:37]} 9. Ne2 {[%clk 0:02:43]}  e5 {[%clk 0:02:37]} 10. h3 {[%clk 0:02:43]}  Ne8 {[%clk 0:02:27]} 11. f4 {[%clk 0:02:41]}  exf4 {[%clk 0:02:26]} 12. gxf4 {[%clk 0:02:34]}  g6 {[%clk 0:02:23]} 13. f5 {[%clk 0:02:33]}  Ne5 {[%clk 0:02:20]} 14. Nf3 {[%clk 0:02:11]}  Nxf3+ {[%clk 0:02:19]} 15. Rxf3 {[%clk 0:02:12]}  Bg5 {[%clk 0:02:20]} 16. Nf4 {[%clk 0:02:08]}  gxf5 {[%clk 0:02:03]} 17. Rg3 {[%clk 0:02:06]}  Kh8 {[%clk 0:02:03]} 18. Qh5 {[%clk 0:01:18]}  Rg8 {[%clk 0:01:53]} 19. Qxf7 {[%clk 0:00:50]}  Nd6 {[%clk 0:01:42]} 20. Qh5 {[%clk 0:00:48]}  fxe4 {[%clk 0:00:57]} 21. Ne6 {[%clk 0:00:40]}  Bxe6 {[%clk 0:00:38]} 22. Bxg5 {[%clk 0:00:39]}  Rxg5 {[%clk 0:00:39]} 23. Qxg5 {[%clk 0:00:36]}  Qxg5 {[%clk 0:00:36]} 24. Rxg5 {[%clk 0:00:37]}  e3 {[%clk 0:00:31]} 25. Rxc5 {[%clk 0:00:37]}  Rg8 {[%clk 0:00:31]} 26. Kh2 {[%clk 0:00:37]}  Nf5 {[%clk 0:00:29]} 27. Rf1 {[%clk 0:00:31]}  Nh4 {[%clk 0:00:18]} 28. Be4 {[%clk 0:00:30]}  Ng6 {[%clk 0:00:03]} 29. c3 {[%clk 0:00:22]}  e2 {[%clk 0:00:02]} 30. Re1 {[%clk 0:00:21]}  Nf4 {[%clk 0:00:03]} 31. Rc7 {[%clk 0:00:19]}  Rg7 {[%clk 0:00:01]} 32. Rxg7 {[%clk 0:00:19]}  Kxg7 {[%clk 0:00:02]} 33. cxd4 {[%clk 0:00:19]}  Kf6 {[%clk 0:00:02]} 34. Kg3 {[%clk 0:00:19]}  Nh5+ {[%clk 0:00:02]} 35. Kf2 {[%clk 0:00:19]}  Nf4 {[%clk 0:00:03]} 36. Ke3 {[%clk 0:00:19]}  Nxh3 {[%clk 0:00:01]} 37. Rxe2 {[%clk 0:00:19]}  Bxa2 {[%clk 0:00:02]} 38. Rh2 {[%clk 0:00:18]}  Ng5 {[%clk 0:00:02]} 39. Rh6+ {[%clk 0:00:18]}  Kg7 {[%clk 0:00:03]} 40. Rd6 {[%clk 0:00:18]}  Be6 {[%clk 0:00:02]} 41. d5 {[%clk 0:00:18]}  Bh3 {[%clk 0:00:02]} 42. Rd8 {[%clk 0:00:18]}  Nf7 {[%clk 0:00:02]} 43. Rb8 {[%clk 0:00:19]}  h5 {[%clk 0:00:02]} 44. Rxb7 {[%clk 0:00:19]}  Kf6 {[%clk 0:00:03]} 45. d6 {[%clk 0:00:19]}  Nxd6 {[%clk 0:00:03]} 46. Rxa7 {[%clk 0:00:19]}  h4 {[%clk 0:00:02]} 47. Rh7 {[%clk 0:00:18]}  Kg5 {[%clk 0:00:02]} 48. Rg7+ {[%clk 0:00:18]}  Kf6 {[%clk 0:00:02]} 49. Rg6+ {[%clk 0:00:18]}  Ke7 {[%clk 0:00:02]} 50. Rh6 {[%clk 0:00:19]}  Be6 {[%clk 0:00:02]} 51. Rxh4 {[%clk 0:00:19]}  Nb5 {[%clk 0:00:02]} 52. Rh7+ {[%clk 0:00:19]}  Kf6 {[%clk 0:00:02]} 53. b4 {[%clk 0:00:19]}  Nd6 {[%clk 0:00:02]} 54. Rc7 {[%clk 0:00:19]}  Nb5 {[%clk 0:00:01]} 55. Rc5 {[%clk 0:00:20]}  Nd6 {[%clk 0:00:02]} 56. b5 {[%clk 0:00:20]}  Ke7 {[%clk 0:00:00]} 57. b6 {[%clk 0:00:21]} 1-0